bitfinex/quotes_BTCUSD_20250601
["timestamp","ask_amount","ask_price","bid_price","bid_amount"]
[1748741122039,0.50657661,104370.0,104360.0,0.44534357]
[1748741122605,0.51615744,104370.0,104360.0,0.46104692]
[1748741122822,0.51615744,104370.0,104360.0,0.44534357]
[1748741123035,0.51615744,104370.0,104360.0,0.45431697]
[1748741123287,0.51615744,104370.0,104360.0,0.45431699]
[1748741123498,0.50657661,104370.0,104360.0,0.45207363]
[1748741123705,0.51615744,104370.0,104360.0,0.45207363]
[1748741124132,0.51615744,104370.0,104360.0,0.45431699]
[1748741124350,0.51615744,104370.0,104360.0,0.45207363]
[1748741124590,0.51615744,104370.0,104360.0,0.44534357]
[1748741124816,0.51615744,104370.0,104360.0,0.45207363]
[1748741125026,0.51615744,104370.0,104360.0,0.44534357]
[1748741125240,0.51615744,104370.0,104360.0,0.45431699]
[1748741125674,0.72694569,104370.0,104360.0,0.20650196]
[1748741125900,0.70778457,104370.0,104360.0,0.40099823]
[1748741126115,0.51615863,104370.0,104360.0,0.40099823]
[1748741126330,0.70778457,104370.0,104360.0,0.42628016]
[1748741126754,0.70778457,104370.0,104360.0,0.45157936]
[1748741126973,0.70778457,104370.0,104360.0,0.45157935]
[1748741127189,0.70778457,104370.0,104360.0,0.435862]
[1748741127819,0.70778457,104370.0,104360.0,0.45157659]
[1748741128040,0.6980803,104370.0,104360.0,0.44199105]
[1748741128244,0.6980803,104370.0,104360.0,0.45157289]
[1748741128642,0.6980803,104370.0,104360.0,0.44483965]
[1748741128877,0.6980803,104370.0,104360.0,0.45157289]
[1748741129480,0.6980803,104370.0,104360.0,0.46115464]
[1748741129716,0.41394296,104370.0,104360.0,0.47073621]
[1748741129909,0.6055689,104370.0,104360.0,0.43240835]
[1748741130231,0.59598807,104370.0,104360.0,0.41669832]
[1748741130440,0.59598807,104370.0,104360.0,0.21548081]
[1748741130441,0.58640705,104370.0,104360.0,0.21548081]
[1748741130670,0.67891827,104370.0,104360.0,0.21548112]
[1748741130877,0.67891827,104370.0,104360.0,0.2154818]
[1748741131084,0.67891827,104370.0,104360.0,0.2154819]
[1748741131271,0.77477257,104370.0,104360.0,0.1997719]
[1748741132574,1.14247257,104370.0,104360.0,0.1997719]
[1748741133419,1.15701342,104370.0,104360.0,0.1997719]
[1748741133835,1.18578742,104370.0,104360.0,0.1997719]
[1748741137174,1.17368742,104370.0,104360.0,0.1997719]
[1748741137405,1.03581952,104370.0,104360.0,0.42016173]
[1748741137675,1.45225618,104370.0,104360.0,0.41058035]
[1748741137898,1.35652188,104370.0,104360.0,0.41058035]
[1748741138123,1.34694105,104370.0,104360.0,0.41058035]
[1748741138350,1.43945227,104370.0,104360.0,0.41058035]
[1748741139531,1.09945227,104370.0,104360.0,0.41058035]
[1748741140195,1.08987116,104370.0,104360.0,0.40099832]
[1748741140422,1.08987116,104370.0,104360.0,0.1997719]
[1748741140639,1.08987116,104370.0,104360.0,0.40099832]
[1748741142963,1.08987116,104370.0,104360.0,0.41649832]
[1748741143472,1.08987116,104370.0,104360.0,0.43209832]
[1748741143685,1.08999116,104370.0,104360.0,0.43209832]
[1748741144115,1.08999116,104370.0,104360.0,0.4225162]
[1748741144550,1.58999116,104370.0,104360.0,0.4225162]
[1748741145299,1.58999116,104370.0,104360.0,0.43209841]
[1748741146988,1.58999116,104370.0,104360.0,0.24045411]
[1748741147214,1.58999116,104370.0,104360.0,0.2308719]
[1748741147643,1.58999116,104370.0,104360.0,0.43209841]
[1748741148446,1.58999116,104370.0,104360.0,0.41649841]
[1748741149283,1.58999116,104370.0,104360.0,0.1997719]
[1748741153804,1.58999116,104370.0,104360.0,0.2163719]
[1748741154461,1.58999116,104370.0,104360.0,0.2327719]
[1748741155841,0.913974,104370.0,104360.0,0.43399832]
[1748741156072,1.31448352,104370.0,104360.0,0.45316191]
[1748741156297,1.31448343,104370.0,104360.0,0.46274357]
[1748741156511,1.31448343,104370.0,104360.0,0.47171234]
[1748741156727,1.31448343,104370.0,104360.0,0.46274357]
[1748741156913,1.31460343,104370.0,104360.0,0.45316191]
[1748741157160,1.58916012,104370.0,104360.0,0.45254912]
[1748741157383,1.58916012,104370.0,104360.0,0.44358035]
[1748741157599,1.58916012,104370.0,104360.0,0.45316228]
[1748741158026,1.58916012,104370.0,104360.0,0.43399832]
[1748741158238,1.58916012,104370.0,104360.0,0.44358035]
[1748741159290,1.58916012,104370.0,104360.0,0.4525507]
[1748741159499,1.58916012,104370.0,104360.0,0.44358035]
[1748741159712,0.90436176,104370.0,104360.0,0.42718035]
[1748741159954,1.31456315,104370.0,104360.0,0.45307338]
[1748741160159,1.31456315,104370.0,104360.0,0.42974376]
[1748741160724,1.31456315,104370.0,104360.0,0.43647337]
[1748741160932,1.31456315,104370.0,104360.0,0.44544619]
[1748741161145,1.40707428,104370.0,104360.0,0.44544631]
[1748741161382,1.40707428,104370.0,104360.0,0.4454464]
[1748741161546,1.40711428,104370.0,104360.0,0.4454464]
[1748741161740,1.40711428,104370.0,104360.0,0.4454456]
[1748741162301,1.41669539,104370.0,104360.0,0.45502727]
[1748741162512,1.41669539,104370.0,104360.0,0.4550273]
[1748741162690,1.41669539,104370.0,104360.0,0.4460548]
[1748741162892,1.40711428,104370.0,104360.0,0.45502731]
[1748741163113,1.40711428,104370.0,104360.0,0.43932542]
[1748741163326,1.40711428,104370.0,104360.0,0.4550278]
[1748741163466,1.40711428,104370.0,104360.0,0.43932542]
[1748741163673,1.40711428,104370.0,104360.0,0.4550278]
[1748741164073,1.10891428,104370.0,104360.0,0.4550278]
[1748741164311,1.31444306,104370.0,104360.0,0.47297323]
[1748741164515,1.32402417,104370.0,104360.0,0.4679727]
[1748741164694,1.32402417,104370.0,104360.0,0.45899791]
[1748741164892,1.3240249,104370.0,104360.0,0.42474385]
[1748741165124,1.3240249,104370.0,104360.0,0.4494212]
[1748741165297,1.39591141,104370.0,104360.0,0.44942123]
[1748741165789,1.39591141,104370.0,104360.0,0.44941961]
[1748741166517,1.39591141,104370.0,104360.0,0.44942742]
[1748741166713,1.39591141,104370.0,104360.0,0.44942563]
[1748741166923,1.39575141,104370.0,104360.0,0.4590065]
[1748741167441,1.39575141,104370.0,104360.0,0.42474385]
[1748741167646,1.39575141,104370.0,104360.0,0.44942492]
[1748741167852,1.39575141,104370.0,104360.0,0.44269371]
[1748741168029,1.39575141,104370.0,104360.0,0.42474385]
[1748741168430,1.39575141,104370.0,104360.0,0.43147505]
[1748741168645,1.39575141,104370.0,104360.0,0.44942492]
[1748741169178,1.39575141,104370.0,104360.0,0.44269242]
[1748741169309,1.39575141,104370.0,104360.0,0.4590047]
[1748741169528,1.39575141,104370.0,104360.0,0.47520473]
[1748741169727,1.39575141,104370.0,104360.0,0.45052542]
[1748741169941,1.38617021,104370.0,104360.0,0.46847313]
[1748741170181,1.39575141,104370.0,104360.0,0.49110352]
[1748741170776,1.39575141,104370.0,104360.0,0.48152195]
[1748741171296,1.3238649,104370.0,104360.0,0.47479156]
[1748741171510,1.3238649,104370.0,104360.0,0.45684385]
[1748741171731,1.3238649,104370.0,104360.0,0.48152076]
[1748741171903,1.3238649,104370.0,104360.0,0.47479073]
[1748741172203,1.3238649,104370.0,104360.0,0.47479076]
[1748741172433,1.3238649,104370.0,104360.0,0.45684385]
[1748741172675,1.35878733,104370.0,104360.0,0.45684394]
[1748741173042,1.35878733,104370.0,104360.0,0.4664256]
[1748741173264,1.34920604,104370.0,104360.0,0.4664256]
[1748741173477,1.34920604,104370.0,104360.0,0.45684348]
[1748741173944,1.34920604,104370.0,104360.0,0.34243665]
[1748741174160,1.34920604,104370.0,104360.0,0.3491666]
[1748741174354,1.34920604,104370.0,104360.0,0.33122004]
[1748741174556,1.34920604,104370.0,104360.0,0.33795]
[1748741174732,1.34920604,104370.0,104360.0,0.33969656]
[1748741174934,1.34920604,104370.0,104360.0,0.31502004]
[1748741175095,1.34920604,104370.0,104360.0,0.33296648]
[1748741175297,1.34920604,104370.0,104360.0,0.29912004]
[1748741175499,1.33962484,104370.0,104360.0,0.30870161]
[1748741176326,1.32952373,104370.0,104360.0,0.30870161]
[1748741176535,1.32952373,104370.0,104360.0,0.32440469]
[1748741176737,1.32952373,104370.0,104360.0,0.30870161]
[1748741176936,1.32952373,104370.0,104360.0,0.31767479]
[1748741177138,1.32952373,104370.0,104360.0,0.34235105]
[1748741177606,1.32952373,104370.0,104360.0,0.32440468]
[1748741177806,1.32952373,104370.0,104360.0,0.34235105]
[1748741177966,1.32952373,104370.0,104360.0,0.34235131]
[1748741178835,1.33910484,104370.0,104360.0,0.3244048]
[1748741178955,1.33910484,104370.0,104360.0,0.34235113]
[1748741179156,1.33910484,104370.0,104360.0,0.34235097]
[1748741179407,1.33910484,104370.0,104360.0,0.31767477]
[1748741179615,1.34868604,104370.0,104360.0,0.3080932]
[1748741179820,1.34868604,104370.0,104360.0,0.3327694]
[1748741180303,1.34868604,104370.0,104360.0,0.34235122]
[1748741180508,1.33910484,104370.0,104360.0,0.34235122]
[1748741181023,1.33910484,104370.0,104360.0,0.34235189]
[1748741181456,1.33910484,104370.0,104360.0,0.32440507]
[1748741181653,1.33910484,104370.0,104360.0,0.34235189]
[1748741181822,1.33910484,104370.0,104360.0,0.32664855]
[1748741181983,1.33910484,104370.0,104360.0,0.34235386]
[1748741182183,1.33910484,104370.0,104360.0,0.30870161]
[1748741182372,1.33910484,104370.0,104360.0,0.34235386]
[1748741182786,1.33910484,104370.0,104360.0,0.31767566]
[1748741182988,1.33910484,104370.0,104360.0,0.34235711]
[1748741183615,1.33910484,104370.0,104360.0,0.30870161]
[1748741183856,1.33910484,104370.0,104360.0,0.34235763]
[1748741184076,1.33910484,104370.0,104360.0,0.30648626]
[1748741184713,1.33910484,104370.0,104360.0,0.30649114]
[1748741184917,1.33910484,104370.0,104360.0,0.29690957]
[1748741185099,1.33910484,104370.0,104360.0,0.30649114]
[1748741185299,1.32952373,104370.0,104360.0,0.29078272]
[1748741185540,1.33910493,104370.0,104360.0,0.32239114]
[1748741185745,1.33910493,104370.0,104360.0,0.31280988]
[1748741185923,1.33910493,104370.0,104360.0,0.32840988]
[1748741186079,1.33910493,104370.0,104360.0,0.32841158]
[1748741186285,1.34868622,104370.0,104360.0,0.3188364]
[1748741186516,1.34868622,104370.0,104360.0,0.32841808]
[1748741186766,1.32892327,104370.0,104360.0,0.32841799]
[1748741186903,1.32892327,104370.0,104360.0,0.3014825]
[1748741186904,0.8852,104370.0,104360.0,0.3014825]
[1748741187124,0.8852,104370.0,104360.0,1.07041877]
[1748741187350,0.8852,104370.0,104360.0,1.04348432]
[1748741187557,0.8852,104370.0,104360.0,1.07041545]
[1748741187767,0.8852,104370.0,104360.0,1.41041545]
[1748741187984,0.8852,104370.0,104360.0,1.4249563]
[1748741188219,0.8852,104370.0,104360.0,1.42495299]
[1748741188436,0.8852,104370.0,104360.0,1.42495268]
[1748741188688,0.8842,104370.0,104360.0,1.73904982]
[1748741188917,0.8842,104370.0,104360.0,1.74129331]
[1748741189130,0.8842,104370.0,104360.0,1.73231754]
[1748741189357,0.8832,104370.0,104360.0,1.75026893]
[1748741189587,0.8832,104370.0,104360.0,1.73231754]
[1748741189816,0.8832,104370.0,104360.0,1.73904931]
[1748741190043,0.8832,104370.0,104360.0,1.75924443]
[1748741190250,0.8832,104370.0,104360.0,1.73231754]
[1748741190487,0.8832,104370.0,104360.0,1.41124346]
[1748741190932,0.8832,104370.0,104360.0,1.41324346]
[1748741191156,0.8832,104370.0,104360.0,1.76100034]
[1748741191360,0.8832,104370.0,104360.0,1.43119599]
[1748741191562,0.8832,104370.0,104360.0,1.41324346]
[1748741192235,0.8832,104370.0,104360.0,1.41997565]
[1748741192563,0.8832,104370.0,104360.0,1.44690443]
[1748741192988,0.8832,104370.0,104360.0,1.45363767]
[1748741193200,0.8832,104370.0,104360.0,1.44690443]
[1748741193410,0.8832,104370.0,104360.0,1.45588209]
[1748741193617,0.8832,104370.0,104360.0,1.44690443]
[1748741194023,0.8832,104370.0,104360.0,1.44018498]
[1748741194237,0.8832,104370.0,104360.0,1.44916264]
[1748741194450,0.8832,104370.0,104360.0,1.46481435]
[1748741194655,0.8832,104370.0,104360.0,1.44018498]
[1748741194856,0.8832,104370.0,104360.0,1.45809579]
[1748741195149,0.8832,104370.0,104360.0,1.46481234]
[1748741195392,0.8832,104370.0,104360.0,1.44914038]
[1748741195637,0.8832,104370.0,104360.0,1.44690153]
[1748741195810,0.8832,104370.0,104360.0,1.43100093]
[1748741196012,0.8832,104370.0,104360.0,1.43323958]
[1748741196189,0.8832,104370.0,104360.0,1.40868498]
[1748741196403,0.8832,104370.0,104360.0,1.73175906]
[1748741196786,0.8832,104370.0,104360.0,1.74071239]
[1748741197039,0.8832,104370.0,104360.0,1.73847404]
[1748741197223,0.8832,104370.0,104360.0,1.42659141]
[1748741197373,0.8832,104370.0,104360.0,1.4243531]
[1748741197575,0.8832,104370.0,104360.0,1.40868498]
[1748741197789,0.8832,104370.0,104360.0,1.43743998]
[1748741197972,0.8832,104370.0,104360.0,1.4463932]
[1748741198179,0.8832,104370.0,104360.0,1.40868498]
[1748741198911,0.8832,104370.0,104360.0,1.42658922]
[1748741199099,0.8832,104370.0,104360.0,1.40868498]
[1748741199390,0.8832,104370.0,104360.0,1.4176371]
[1748741199733,0.8832,104370.0,104360.0,1.40868498]
[1748741200131,0.8832,104370.0,104360.0,1.42658669]
[1748741200335,0.8832,104370.0,104360.0,1.40868498]
[1748741200538,0.8832,104370.0,104360.0,1.41763583]
[1748741200764,0.8832,104370.0,104360.0,1.40868498]
[1748741200959,0.8832,104370.0,104360.0,1.42658669]
[1748741201160,0.8832,104370.0,104360.0,1.76532476]
[1748741201360,0.8832,104370.0,104360.0,1.75637391]
[1748741201627,0.8832,104370.0,104360.0,1.76532465]
[1748741201824,0.8832,104370.0,104360.0,1.76531995]
[1748741202055,0.8832,104370.0,104360.0,1.74742145]
[1748741202284,0.8832,104370.0,104360.0,1.7653199]
[1748741202504,0.8832,104370.0,104360.0,1.76531856]
[1748741203439,0.8832,104370.0,104360.0,1.75636044]
[1748741203657,0.8832,104370.0,104360.0,1.75631778]
[1748741203886,0.8832,104370.0,104360.0,1.74961992]
[1748741204113,0.8832,104370.0,104360.0,1.722793]
[1748741205867,0.8832,104370.0,104360.0,1.7294908]
[1748741206009,0.8832,104370.0,104360.0,1.722793]
[1748741206209,0.8832,104370.0,104360.0,1.74735162]
[1748741206438,0.8832,104370.0,104360.0,1.40641672]
[1748741208058,0.8832,104370.0,104360.0,1.43097539]
[1748741208315,0.8832,104370.0,104360.0,1.75404947]
[1748741208520,0.8832,104370.0,104360.0,1.75404501]
[1748741208690,0.8832,104370.0,104360.0,1.7361874]
[1748741208890,0.8832,104370.0,104360.0,1.7294908]
[1748741209320,0.8832,104370.0,104360.0,1.75404501]
[1748741209556,0.8832,104370.0,104360.0,1.7294908]
[1748741209966,0.8832,104370.0,104360.0,1.74734495]
[1748741210281,0.8832,104370.0,104360.0,1.7294908]
[1748741210482,0.8832,104370.0,104360.0,1.74734492]
[1748741210893,0.8832,104370.0,104360.0,1.7294908]
[1748741211091,0.8832,104370.0,104360.0,1.73618609]
[1748741211801,0.8832,104370.0,104360.0,1.8216108]
[1748741212276,0.8832,104370.0,104360.0,1.83946135]
[1748741212491,0.8832,104370.0,104360.0,1.8461553]
[1748741212911,0.8832,104370.0,104360.0,1.84613948]
[1748741213132,0.8832,104370.0,104360.0,1.87489145]
[1748741213353,0.8832,104370.0,104360.0,1.86620182]
[1748741213575,0.8832,104370.0,104360.0,1.87589143]
[1748741213790,0.8832,104370.0,104360.0,1.89980182]
[1748741214013,0.8832,104370.0,104360.0,1.90849095]
[1748741214224,0.8832,104370.0,104360.0,1.87589095]
[1748741214684,0.8832,104370.0,104360.0,1.87590173]
[1748741214916,0.8832,104370.0,104360.0,1.87590171]
[1748741215776,0.8832,104370.0,104360.0,1.87592643]
[1748741216016,0.8832,104370.0,104360.0,1.85806197]
[1748741216187,0.8832,104370.0,104360.0,1.87592643]
[1748741216644,0.87422226,104370.0,104360.0,1.85808407]
[1748741216832,0.85862226,104370.0,104360.0,1.87600746]
[1748741217165,0.85862226,104370.0,104360.0,1.90860746]
[1748741217383,0.85862226,104370.0,104360.0,1.90860783]
[1748741217601,0.85862226,104370.0,104360.0,1.90860883]
[1748741217797,0.85862226,104370.0,104360.0,1.90188719]
[1748741218005,0.85862226,104370.0,104360.0,1.90860883]
[1748741218204,0.85862226,104370.0,104360.0,1.90188721]
[1748741218410,0.85862226,104370.0,104360.0,1.90860886]
[1748741218632,0.85862226,104370.0,104360.0,1.90188721]
[1748741218846,0.85862226,104370.0,104360.0,1.90861047]
[1748741219044,0.85862226,104370.0,104360.0,0.84726823]
[1748741219250,0.85862226,104370.0,104360.0,2.20509047]
[1748741220055,0.85862226,104370.0,104360.0,2.20509052]
[1748741220263,0.85862226,104370.0,104360.0,2.1871649]
[1748741220477,0.85862226,104370.0,104360.0,2.20509052]
[1748741220653,0.85862226,104370.0,104360.0,2.1804428]
[1748741220871,0.85862226,104370.0,104360.0,2.20509052]
[1748741221072,0.85862226,104370.0,104360.0,2.20509051]
[1748741221287,0.85862226,104370.0,104360.0,2.20509215]
[1748741221478,0.85862226,104370.0,104360.0,2.20509213]
[1748741221681,0.85862226,104370.0,104360.0,2.20509214]
[1748741221876,0.85862226,104370.0,104360.0,2.20509217]
[1748741222220,0.85862226,104370.0,104360.0,2.20509216]
[1748741222536,0.85862226,104370.0,104360.0,2.19836961]
[1748741222734,0.85862226,104370.0,104360.0,2.20509216]
[1748741223377,0.85862226,104370.0,104360.0,2.19837072]
[1748741223588,0.85862226,104370.0,104360.0,2.20509369]
[1748741223994,0.85862226,104370.0,104360.0,2.19836116]
[1748741224429,0.85862226,104370.0,104360.0,2.1983654]
[1748741224630,0.85862226,104370.0,104360.0,2.19837675]
[1748741225041,0.85862226,104370.0,104360.0,2.17371027]
[1748741225255,0.85862226,104370.0,104360.0,2.19165017]
[1748741225465,0.85862226,104370.0,104360.0,2.19837767]
[1748741225810,0.85862226,104370.0,104360.0,2.1916508]
[1748741226014,0.85862226,104370.0,104360.0,2.1983785]
[1748741227080,0.85862226,104370.0,104360.0,2.19837924]
[1748741227276,0.85862226,104370.0,104360.0,2.19165134]
[1748741227725,0.85862226,104370.0,104360.0,2.19837921]
[1748741227896,0.85862226,104370.0,104360.0,2.6120991]
[1748741228515,0.85862226,104370.0,104360.0,2.61209873]
[1748741228916,0.85862226,104370.0,104360.0,2.61209826]
[1748741229292,0.85862226,104370.0,104360.0,2.61209824]
[1748741229492,0.85862226,104370.0,104360.0,2.60537059]
[1748741229676,0.85862226,104370.0,104360.0,2.5941578]
[1748741230073,0.85862226,104370.0,104360.0,2.61209788]
[1748741230279,0.85862226,104370.0,104360.0,2.57949789]
[1748741230504,0.85862226,104370.0,104360.0,2.55483027]
[1748741230683,0.85862226,104370.0,104360.0,2.57949791]
[1748741231035,0.85862226,104370.0,104360.0,2.57949781]
[1748741231251,0.85862226,104370.0,104360.0,2.61330538]
[1748741231457,0.85862226,104370.0,104360.0,2.61330537]
[1748741232671,0.85862226,104370.0,104360.0,2.63125575]
[1748741233061,0.85862226,104370.0,104360.0,2.61331137]
[1748741233266,0.85862226,104370.0,104360.0,2.60658223]
[1748741233471,0.85862226,104370.0,104360.0,2.63125744]
[1748741233700,0.85862226,104370.0,104360.0,2.63126195]
[1748741233899,0.85862226,104370.0,104360.0,2.33478195]
[1748741234099,0.85862226,104370.0,104360.0,2.63094177]
[1748741234317,0.85862226,104370.0,104360.0,2.62421099]
[1748741234514,0.85862226,104370.0,104360.0,2.60626223]
[1748741234718,0.85862226,104370.0,104360.0,2.61299301]
[1748741234925,0.85862226,104370.0,104360.0,2.60626223]
[1748741235125,0.85862226,104370.0,104360.0,2.63094177]
[1748741235331,0.85862226,104370.0,104360.0,2.61299301]
[1748741235537,0.85862226,104370.0,104360.0,2.60626223]
[1748741235749,0.85862226,104370.0,104360.0,2.61299301]
[1748741235923,0.85862226,104370.0,104360.0,2.63094178]
[1748741236335,0.85862226,104370.0,104360.0,2.612993]
[1748741236549,0.85862226,104370.0,104360.0,2.63094172]
[1748741238062,0.85862226,104370.0,104360.0,2.60626223]
[1748741238267,0.85862226,104370.0,104360.0,2.63094169]
[1748741238827,0.85862226,104370.0,104360.0,2.63094165]
[1748741239416,0.85862226,104370.0,104360.0,2.63094152]
[1748741240022,0.85862226,104370.0,104360.0,2.63094144]
[1748741240219,0.85862226,104370.0,104360.0,2.66683848]
[1748741240442,0.85862226,104370.0,104360.0,2.67805631]
[1748741240666,0.85862226,104370.0,104360.0,2.684787]
[1748741241186,0.85862226,104370.0,104360.0,2.6847867]
[1748741241952,0.85862226,104370.0,104360.0,2.6768384]
[1748741242154,0.85862226,104370.0,104360.0,2.69478673]
[1748741242538,0.85862226,104370.0,104360.0,2.67010779]
[1748741242722,0.85862226,104370.0,104360.0,2.68510779]
[1748741242926,0.85862226,104370.0,104360.0,2.67683851]
[1748741243100,0.85862226,104370.0,104360.0,2.67010779]
[1748741243881,0.85862226,104370.0,104360.0,2.67683851]
[1748741244435,0.85862226,104370.0,104360.0,2.69478702]
[1748741244641,0.85862226,104370.0,104360.0,2.67683851]
[1748741244855,0.85862226,104370.0,104360.0,2.64303093]
[1748741245030,0.85862226,104370.0,104360.0,2.66097937]
[1748741245244,0.85862226,104370.0,104360.0,2.64303093]
[1748741245659,0.85862226,104370.0,104360.0,2.66097936]
[1748741245861,0.85862226,104370.0,104360.0,2.64976159]
[1748741246218,0.85862226,104370.0,104360.0,2.64303093]
[1748741246533,0.85862226,104370.0,104360.0,2.66097939]
[1748741246739,0.85862226,104370.0,104360.0,2.64303093]
[1748741246941,0.85862226,104370.0,104360.0,2.64976159]
[1748741247141,0.85862226,104370.0,104360.0,2.66097936]
[1748741247569,0.85862226,104370.0,104360.0,2.66771002]
[1748741247785,0.85862226,104370.0,104360.0,2.66771001]
[1748741248072,0.85862226,104370.0,104360.0,2.68046159]
[1748741250121,0.85862226,104370.0,104360.0,2.69841001]
[1748741250338,0.85862226,104370.0,104360.0,2.68046159]
[1748741250578,0.85862226,104370.0,104360.0,2.70514066]
[1748741250980,0.85862226,104370.0,104360.0,2.68046159]
[1748741251183,0.85862226,104370.0,104360.0,2.69841011]
[1748741251397,0.85862226,104370.0,104360.0,2.68719228]
[1748741251603,0.85862226,104370.0,104360.0,2.68046159]
[1748741253007,0.85862226,104370.0,104360.0,2.68341024]
[1748741253210,0.85862226,104370.0,104360.0,2.64976159]
[1748741253429,0.8492857,104370.0,104360.0,2.64976159]
[1748741253624,0.8492857,104370.0,104360.0,2.65649233]
[1748741253827,0.8492857,104370.0,104360.0,2.64976159]
[1748741254047,0.8492857,104370.0,104360.0,2.68341598]
[1748741254250,0.8492857,104370.0,104360.0,2.67444148]
[1748741254461,0.48364804,104370.0,104360.0,3.65962488]
[1748741254693,0.48364804,104370.0,104360.0,3.67084192]
[1748741254932,0.48364804,104370.0,104360.0,3.69366277]
[1748741255149,0.48364804,104370.0,104360.0,3.6916619]
[1748741255354,0.48364804,104370.0,104360.0,3.66698383]
[1748741255556,0.48364804,104370.0,104360.0,3.67098383]
[1748741255973,0.48364804,104370.0,104360.0,3.66698383]
[1748741256173,0.48364804,104370.0,104360.0,3.66398383]
[1748741256378,0.48364804,104370.0,104360.0,3.67571448]
[1748741256611,0.48364804,104370.0,104360.0,3.69366294]
[1748741256844,0.48364804,104370.0,104360.0,3.69666294]
[1748741257052,0.48364804,104370.0,104360.0,3.69666585]
[1748741257256,0.48364804,104370.0,104360.0,3.67871528]
[1748741257461,0.48364804,104370.0,104360.0,3.72753627]
[1748741257462,0.11801038,104370.0,104360.0,3.72753627]
[1748741257676,0.11801038,104370.0,104360.0,3.70287899]
[1748741257877,0.11801038,104370.0,104360.0,3.73153628]
[1748741258708,0.11801038,104370.0,104360.0,3.73153059]
[1748741258952,0.11801038,104370.0,104360.0,3.73152808]
[1748741259122,0.11801038,104370.0,104360.0,3.70687899]
[1748741259542,0.11801038,104370.0,104360.0,3.71360119]
[1748741259715,0.11801038,104370.0,104360.0,3.72480371]
[1748741259902,0.11801038,104370.0,104360.0,3.70687899]
[1748741260102,0.11801038,104370.0,104360.0,3.73152548]
[1748741260368,0.5,104380.0,104370.0,0.58490957]
[1748741260589,0.5,104380.0,104370.0,1.35155553]
[1748741260723,0.5,104380.0,104370.0,1.32691203]
[1748741260932,0.5,104380.0,104370.0,1.33363227]
[1748741261172,0.5,104380.0,104370.0,1.34483269]
[1748741261374,0.5,104380.0,104370.0,1.35155294]
[1748741261534,0.5,104380.0,104370.0,1.36501203]
[1748741262558,0.5,104380.0,104370.0,1.39375903]
[1748741262814,0.5,104380.0,104370.0,1.41839846]
[1748741263232,0.5,104380.0,104370.0,1.41839808]
[1748741263434,0.5,104380.0,104370.0,1.41167761]
[1748741263650,0.5,104380.0,104370.0,1.40047849]
[1748741263858,0.5,104380.0,104370.0,1.41167761]
[1748741264097,0.5,104380.0,104370.0,1.4004783]
[1748741264275,0.5,104380.0,104370.0,1.41839637]
[1748741264514,0.5,104380.0,104370.0,1.50987637]
[1748741265107,0.5,104380.0,104370.0,1.48523903]
[1748741265238,0.5,104380.0,104370.0,1.49195835]
[1748741265897,0.5,104380.0,104370.0,1.50987654]
[1748741267216,0.5,104380.0,104370.0,1.49195877]
[1748741267421,0.5,104380.0,104370.0,1.54375874]
[1748741267626,0.5,104380.0,104370.0,1.54375872]
[1748741267827,0.5,104380.0,104370.0,1.54375932]
[1748741268461,0.5,104380.0,104370.0,1.53704168]
[1748741268674,0.5,104380.0,104370.0,1.54376243]
[1748741269085,0.5,104380.0,104370.0,1.9574452]
[1748741269861,0.5,104380.0,104370.0,1.93279967]
[1748741270063,0.5,104380.0,104370.0,1.95744875]
[1748741270487,0.5,104380.0,104370.0,1.95744874]
[1748741270889,0.5,104380.0,104370.0,1.95072627]
[1748741271091,0.5,104380.0,104370.0,1.95745856]
[1748741271656,0.5,104380.0,104370.0,1.95073427]
[1748741271858,0.5,104380.0,104370.0,1.31131158]
[1748741272069,0.5,104380.0,104370.0,1.30458611]
[1748741272272,0.5,104380.0,104370.0,1.31131158]
[1748741272535,0.5,104380.0,104370.0,1.3113116]
[1748741272733,0.5,104380.0,104370.0,1.31131162]
[1748741273075,0.5,104380.0,104370.0,1.31131192]
[1748741273540,0.5,104380.0,104370.0,1.31131271]
[1748741274092,0.5,104380.0,104370.0,1.30458693]
[1748741274296,0.5,104380.0,104370.0,1.31131364]
[1748741274535,0.5,104380.0,104370.0,1.30458761]
[1748741274738,0.5,104380.0,104370.0,1.19517151]
[1748741274941,0.5,104380.0,104370.0,1.58125151]
[1748741275539,0.5,104380.0,104370.0,1.58797755]
[1748741275909,0.5,104380.0,104370.0,1.59918762]
[1748741276105,0.5,104380.0,104370.0,1.58125151]
[1748741276304,0.5,104380.0,104370.0,1.59918757]
[1748741276506,0.5,104380.0,104370.0,1.58797754]
[1748741276803,0.5,104380.0,104370.0,1.59918761]
[1748741277239,0.5,104380.0,104370.0,1.58797753]
[1748741277825,0.5,104380.0,104370.0,1.58125151]
[1748741278006,0.5,104380.0,104370.0,1.58797755]
[1748741278603,0.5,104380.0,104370.0,1.59918761]
[1748741278767,0.5,104380.0,104370.0,1.58797753]
[1748741278942,0.5,104380.0,104370.0,1.59918758]
[1748741279142,0.5,104380.0,104370.0,1.6059136]
[1748741279701,0.5,104380.0,104370.0,1.58797754]
[1748741279854,0.5,104380.0,104370.0,1.59918761]
[1748741280048,0.5,104380.0,104370.0,1.58797754]
[1748741280248,0.5,104380.0,104370.0,1.60591385]
[1748741281126,0.5,104380.0,104370.0,1.60591386]
[1748741281332,0.5,104380.0,104370.0,1.60591448]
[1748741281545,0.5,104380.0,104370.0,1.62203368]
[1748741281669,0.43267265,104380.0,104370.0,1.63123976]
[1748741281904,0.3487624,104380.0,104370.0,1.6556999]
[1748741282114,0.3487624,104380.0,104370.0,1.62183156]
[1748741282115,0.25769314,104380.0,104370.0,1.62183156]
[1748741282314,0.21038314,104380.0,104370.0,1.65569167]
[1748741282516,0.16183314,104380.0,104370.0,1.65569112]
[1748741282768,0.01913462,104380.0,104370.0,1.61882959]
[1748741282998,0.01913462,104380.0,104370.0,1.61210346]
[1748741283212,0.01913462,104380.0,104370.0,1.6228065]
[1748741283430,0.01913462,104380.0,104370.0,1.61980646]
[1748741283597,0.49748,104390.0,104380.0,0.63488845]
[1748741283800,0.49748,104390.0,104380.0,0.78922856]
[1748741283961,0.49748,104390.0,104380.0,0.7713118]
[1748741284161,0.49748,104390.0,104380.0,0.78923008]
[1748741284355,0.49748,104390.0,104380.0,0.78922658]
[1748741284559,0.49748,104390.0,104380.0,0.78922085]
[1748741284759,0.49748,104390.0,104380.0,0.78922092]
[1748741284965,0.44961844,104390.0,104380.0,0.78922092]
[1748741285189,0.40175688,104390.0,104380.0,0.82052003]
[1748741285397,0.30603376,104390.0,104380.0,0.82052003]
[1748741285616,0.30603376,104390.0,104380.0,0.82252003]
[1748741286165,0.7581722,104390.0,104380.0,0.82552003]
[1748741286371,0.7581722,104390.0,104380.0,0.8235159]
[1748741286581,0.7581722,104390.0,104380.0,0.80289301]
[1748741286880,0.7581722,104390.0,104380.0,0.80499255]